bitfinex-derivatives/quotes_SOLF0:USTF0_20250924
["timestamp","ask_amount","ask_price","bid_price","bid_amount"]
[1758742978868,7.7,212.91,212.88,11.8454]
[1758742979065,3.42197086,212.9,212.88,11.8454]
[1758742979274,7.7,212.91,212.88,11.8454]
[1758742979472,3.42163363,212.9,212.88,11.8454]
[1758742979680,7.7,212.91,212.88,11.8454]
[1758742979878,7.7,212.93,212.89,4.2252]
[1758742980175,11.3218293,212.92,212.89,4.2252]
[1758742980377,3.4218293,212.91,212.89,11.5252]
[1758742980576,7.9,212.91,212.89,4.2252]
[1758742981372,7.9,212.91,212.89,11.5252]
[1758742981779,3.39631656,212.94,212.91,4.2249]
[1758742981980,3.42083698,212.93,212.91,7.3]
[1758742982176,11.29631656,212.97,212.91,7.3]
[1758742982382,7.9,212.95,212.91,7.3]
[1758742982576,3.42108925,212.94,212.91,7.3]
[1758742982880,3.42108925,212.93,212.91,7.3]
[1758742983077,7.9,212.96,212.91,7.3]
[1758742983380,7.9,212.94,212.92,4.2246]
[1758742983580,3.42108822,212.93,212.92,4.2246]
[1758742984288,3.42108822,212.93,212.85,7.3]
[1758742984289,11.32108822,212.93,212.85,7.3]
[1758742984586,3.42108822,212.92,212.86,7.3]
[1758742984782,7.9,212.95,212.91,11.5248]
[1758742984990,3.420232,212.94,212.92,7.3]
[1758742985184,3.420232,212.93,212.92,7.3]
[1758742985482,3.420232,212.94,212.92,7.3]
[1758742985681,3.420232,212.93,212.92,7.3]
[1758742986080,3.420232,212.94,212.92,7.3]
[1758742986285,3.420232,212.93,212.92,7.3]
[1758742986686,7.9,212.95,212.92,7.3]
[1758742986879,3.42058029,212.94,212.92,7.3]
[1758742987087,7.9,212.97,212.91,4.2248]
[1758742987384,7.9,212.95,212.91,4.2248]
[1758742987590,11.32073403,212.94,212.91,11.5248]
[1758742987786,11.32073403,212.93,212.91,4.2248]
[1758742988088,7.9,212.93,212.89,11.5253]
[1758742988290,7.9,212.93,212.86,7.3]
[1758742988594,7.9,212.97,212.86,7.3]
[1758742988784,3.42073735,212.96,212.86,7.3]
[1758742988984,3.42073735,212.95,212.88,7.3]
[1758742989185,3.42073735,212.94,212.88,7.3]
[1758742989386,7.9,212.97,212.88,7.3]
[1758742989690,3.42127573,212.96,212.88,7.3]
[1758742989886,3.42127573,212.95,212.88,7.3]
[1758742990090,3.42127573,212.94,212.88,7.3]
[1758742990393,7.9,212.97,212.88,7.3]
[1758742990586,3.42134983,212.96,212.88,7.3]
[1758742990786,3.42134983,212.95,212.88,7.3]
[1758742990989,3.42134983,212.94,212.88,7.3]
[1758742991291,7.9,212.97,212.91,4.2248]
[1758742991492,7.9,212.95,212.91,11.5248]
[1758742991685,3.42178073,212.94,212.91,11.5248]
[1758742991881,3.42178073,212.93,212.91,11.5248]
[1758742992081,7.9,212.95,212.91,11.5248]
[1758742992293,3.42191698,212.94,212.93,4.2245]
[1758742992680,3.42191698,212.94,212.91,7.3]
[1758742992882,3.42191698,212.93,212.87,7.3]
[1758742993093,7.9,212.95,212.87,65.7328]
[1758742993289,3.42297189,212.94,212.88,7.3]
[1758742993489,3.42297189,212.93,212.87,65.7328]
[1758742993691,7.9,212.95,212.88,7.3]
[1758742993893,3.44263802,212.94,212.88,7.3]
[1758742994094,3.44263802,212.93,212.88,7.3]
[1758742994392,7.9,212.95,212.88,7.3]
[1758742994588,3.44264297,212.94,212.88,7.3]
[1758742994889,3.44264297,212.93,212.87,65.7328]
[1758742995096,7.9,212.95,212.88,7.3]
[1758742995288,7.9,212.93,212.91,4.2249]
[1758742995593,11.34243923,212.92,212.88,7.3]
[1758742995886,7.9,212.9,212.84,7.3]
[1758742997286,7.9,212.9,212.87,11.5256]
[1758742997484,3.4421553,212.89,212.87,11.5256]
[1758742997684,7.9,212.9,212.87,11.5256]
[1758742997884,3.4421553,212.89,212.87,11.5256]
[1758742998083,7.9,212.9,212.87,11.5256]
[1758742998288,3.44210795,212.89,212.87,11.5256]
[1758742998496,7.9,212.9,212.87,11.5256]
[1758742998691,3.44209824,212.89,212.87,11.5256]
[1758742998893,7.9,212.9,212.87,11.5256]
[1758742999195,7.9,212.88,212.87,4.2256]
[1758742999391,2.17383089,212.91,212.87,4.2256]
[1758742999592,7.9,212.89,212.87,4.2256]
[1758743000291,7.9,212.89,212.87,11.5256]
[1758743000890,10.07383089,212.91,212.87,11.5256]
[1758743001092,3.4417449,212.9,212.87,11.5256]
[1758743001290,3.4417449,212.89,212.87,11.5256]
[1758743001493,10.07383089,212.91,212.87,11.5256]
[1758743001692,11.34171014,212.9,212.87,11.5256]
[1758743001892,3.44171014,212.89,212.87,11.5256]
[1758743002200,7.9,212.9,212.87,11.5256]
[1758743002392,3.44161045,212.89,212.87,11.5256]
[1758743002694,7.9,212.9,212.87,11.5256]
[1758743002895,3.44181394,212.89,212.87,11.5256]
[1758743003093,7.9,212.9,212.87,11.5256]
[1758743003291,3.44173874,212.89,212.87,11.5256]
[1758743003592,7.9,212.9,212.87,11.5256]
[1758743003896,3.44226555,212.89,212.87,11.5256]
[1758743004096,7.9,212.9,212.87,11.5256]
[1758743004397,3.44221468,212.89,212.87,11.5256]
[1758743004694,7.9,212.9,212.87,11.5256]
[1758743004993,10.97241571,212.89,212.87,4.2256]
[1758743005197,3.44241571,212.88,212.87,4.2256]
[1758743006198,3.44241571,212.88,212.87,11.9656]
[1758743006490,3.44187533,212.88,212.8,7.74]
[1758743006695,3.44187533,212.87,212.8,7.74]
[1758743006895,3.44187533,212.86,212.8,7.74]
[1758743007091,3.44187533,212.85,212.79,7.74]
[1758743007290,9.70383089,212.88,212.79,65.7558]
[1758743007487,3.46882466,212.87,212.8,7.74]
[1758743007690,3.46882466,212.86,212.82,7.74]
[1758743007900,9.70383089,212.91,212.88,7.74]
[1758743008102,3.46920468,212.9,212.88,7.74]
[1758743008296,3.46920468,212.89,212.88,7.74]
[1758743008492,3.46920468,212.89,212.83,7.74]
[1758743008698,3.46920468,212.88,212.83,7.74]
[1758743008893,9.70383089,212.91,212.83,7.74]
[1758743009098,3.46917505,212.9,212.83,7.74]
[1758743009298,3.46917505,212.89,212.83,7.74]
[1758743009499,3.46917505,212.88,212.82,122.64]
[1758743009701,3.46917505,212.87,212.83,7.74]
[1758743009898,7.53,212.89,212.83,7.74]
[1758743010099,3.46921998,212.88,212.83,7.74]
[1758743010299,3.46921998,212.87,212.82,114.9]
[1758743010499,9.70383089,212.91,212.83,7.74]
[1758743010699,3.46929259,212.9,212.83,7.74]
[1758743010901,3.46929259,212.89,212.83,7.74]
[1758743011096,3.46929259,212.88,212.81,65.752]
[1758743011298,9.70383089,212.91,212.83,7.74]
[1758743011498,3.46975248,212.9,212.89,7.74]
[1758743012002,3.46975248,212.9,212.88,4.2253]
[1758743012200,3.46975248,212.89,212.88,4.2253]
[1758743012599,3.46975248,212.89,212.88,11.9653]
[1758743014800,3.46975248,212.92,212.88,11.9653]
[1758743015004,2.17383089,212.93,212.91,4.2249]
[1758743015299,3.4710089,212.92,212.91,4.2249]
[1758743015919,3.4710089,212.92,212.91,11.9649]
[1758743016200,3.4710089,212.92,212.83,65.7445]
[1758743016505,2.17383089,212.9,212.84,122.62]
[1758743016704,3.4710089,212.89,212.85,7.74]
[1758743016902,2.17383089,212.87,212.81,7.74]
[1758743017102,2.17383089,212.87,212.76,65.7665]
[1758743017103,7.53,212.85,212.77,7.74]
[1758743017407,3.4710089,212.84,212.81,4.2268]
[1758743017601,2.17383089,212.87,212.81,4.2268]
[1758743017908,3.47070392,212.86,212.81,4.2268]
[1758743018095,11.00070392,212.85,212.81,4.2268]
[1758743018299,3.47070392,212.84,212.81,4.2268]
[1758743018505,7.53,212.85,212.82,4.2265]
[1758743018705,3.46990129,212.84,212.82,4.2265]
[1758743019007,7.53,212.85,212.82,4.2265]
[1758743019200,3.46990586,212.84,212.82,4.2265]
[1758743019401,7.53,212.85,212.82,4.2265]
[1758743019601,3.46917412,212.84,212.82,4.2265]
[1758743019804,7.53,212.85,212.82,4.2265]
[1758743020004,3.46948372,212.84,212.82,4.2265]
[1758743020205,7.53,212.85,212.82,4.2265]
[1758743020406,3.46903196,212.84,212.82,4.2265]
[1758743020601,2.17383089,212.87,212.82,4.2265]
[1758743020801,7.53,212.85,212.82,4.2265]
[1758743021299,7.53,212.86,212.82,4.2265]
[1758743021506,10.99821247,212.85,212.82,4.2265]
[1758743021805,7.53,212.85,212.82,4.2265]
[1758743022507,3.4676702,212.84,212.82,4.2265]
[1758743022803,2.17383089,212.87,212.82,4.2265]
[1758743023005,7.53,212.85,212.82,4.2265]
[1758743023199,3.46723893,212.84,212.82,4.2265]
[1758743023407,7.53,212.85,212.82,4.2265]
[1758743023603,3.4638159,212.84,212.82,4.2265]
[1758743023800,7.53,212.85,212.84,4.2263]
[1758743024001,10.99382383,212.85,212.84,4.2263]
[1758743025606,3.46382383,212.85,212.84,4.2263]
[1758743026702,3.46382383,212.85,212.84,11.9663]
[1758743026904,7.53,212.91,212.88,4.2254]
[1758743027111,7.53,212.91,212.84,7.74]
[1758743027112,2.17383089,212.9,212.84,7.74]
[1758743028210,2.17383089,212.9,212.86,4.2258]
[1758743028409,7.53,212.89,212.86,11.9658]
[1758743029210,2.17383089,212.92,212.85,7.74]
[1758743030213,2.17383089,212.92,212.89,4.2252]
[1758743030413,7.53,212.93,212.86,7.74]
[1758743031612,7.53,212.93,212.87,4.2256]
[1758743032612,2.17383089,212.94,212.88,4.2254]
[1758743032808,7.53,212.93,212.88,4.2254]
[1758743033210,2.17383089,212.94,212.88,4.2254]
[1758743033511,2.17383089,212.9,212.82,7.74]
[1758743033712,2.17383089,212.86,212.82,7.74]
[1758743034013,2.17383089,212.86,212.79,2.17383089]
[1758743034014,7.26,212.85,212.79,9.57383089]
[1758743034913,7.26,212.85,212.79,7.4]
[1758743035211,7.26,212.85,212.82,4.2265]
[1758743035614,2.17383089,212.86,212.82,4.2265]
[1758743035810,7.26,212.85,212.82,4.2265]
[1758743036113,2.17383089,212.86,212.8,4.227]
[1758743036309,7.26,212.83,212.8,4.227]
[1758743036508,2.17383089,212.84,212.79,7.4]
[1758743036813,7.26,212.81,212.78,4.2275]
[1758743038907,3.45100109,212.8,212.78,4.2275]
[1758743039105,7.26,212.81,212.78,4.2275]
[1758743039312,3.45014994,212.8,212.78,4.2275]
[1758743039511,7.26,212.81,212.78,4.2275]
[1758743039712,3.45014538,212.8,212.78,4.2275]
[1758743040015,7.26,212.81,212.78,4.2275]
[1758743040205,3.45014773,212.8,212.78,4.2275]
[1758743040409,7.26,212.81,212.78,4.2275]
[1758743040610,3.45060428,212.8,212.78,4.2275]
[1758743040806,2.17383089,212.8,212.76,7.4]
[1758743041116,11.08052286,212.79,212.76,7.4]
[1758743041410,7.63,212.79,212.76,7.4]
[1758743041817,2.17383089,212.8,212.72,114.88]
[1758743042006,3.44931509,212.79,212.74,4.2282]
[1758743042205,2.17383089,212.8,212.74,11.6182]
[1758743042406,3.44829796,212.79,212.75,7.39]
[1758743042610,2.17383089,212.8,212.75,4.2279]
[1758743042815,3.44829796,212.79,212.76,7.39]
[1758743043117,9.80383089,212.8,212.76,7.39]
[1758743044011,9.80383089,212.8,212.75,4.2279]
[1758743044211,9.80383089,212.8,212.76,7.39]
[1758743045019,7.63,212.79,212.76,7.39]
[1758743045719,2.17383089,212.8,212.76,7.39]
[1758743045919,9.80383089,212.8,212.75,4.2279]
[1758743046117,9.80383089,212.8,212.76,7.39]
[1758743046518,9.80383089,212.8,212.76,11.6177]
[1758743048420,2.17383089,212.8,212.76,11.6177]
[1758743048622,7.63,212.79,212.76,11.6177]
[1758743049924,9.80383089,212.8,212.77,7.39]
[1758743050525,7.63,212.85,212.75,7.39]
[1758743050725,5.61743374,212.84,212.75,7.39]
[1758743050925,3.44360285,212.83,212.75,7.39]
[1758743052228,3.44360285,212.83,212.79,4.2271]
[1758743052427,11.07360285,212.83,212.79,11.6171]
[1758743052620,7.63,212.83,212.79,11.6171]
[1758743053126,7.63,212.83,212.79,4.2271]
[1758743053327,7.63,212.83,212.8,11.617]
[1758743054319,2.17383089,212.84,212.8,4.227]
[1758743054523,7.63,212.82,212.8,4.227]
[1758743055023,2.17383089,212.84,212.81,4.2267]
[1758743055229,11.058721,212.83,212.81,4.2267]
[1758743055426,9.80383089,212.89,212.82,7.39]
[1758743055619,3.42921853,212.88,212.83,4.2264]
[1758743055823,3.42921853,212.88,212.79,180.6573]
[1758743055824,3.42921853,212.87,212.84,7.39]
[1758743056021,7.63,212.88,212.79,180.6573]
[1758743056327,5.60342866,212.87,212.8,7.39]
[1758743056632,7.63,212.88,212.8,7.39]
[1758743056633,3.42985371,212.86,212.8,7.39]
[1758743056929,7.63,212.88,212.8,7.39]
[1758743057127,3.42985837,212.87,212.83,4.2263]
[1758743057329,11.05985837,212.86,212.8,7.39]
[1758743057522,3.42985837,212.85,212.8,7.39]
[1758743057728,7.63,212.83,212.8,7.39]
[1758743058529,7.63,212.83,212.81,4.2268]
[1758743058728,7.63,212.83,212.81,11.6168]
[1758743060227,3.43116402,212.82,212.81,4.2268]
[1758743060533,11.06116402,212.82,212.81,4.2268]
[1758743061029,7.63,212.81,212.79,4.2272]
[1758743061328,3.43242891,212.8,212.74,7.39]
[1758743061535,7.63,212.82,212.74,7.39]
[1758743061735,3.43233892,212.81,212.78,4.2273]
[1758743062032,11.06233892,212.8,212.78,4.2273]
[1758743062228,7.63,212.8,212.78,4.2273]
[1758743062833,7.63,212.83,212.78,4.2273]
[1758743063036,7.63,212.81,212.78,4.2273]
[1758743063234,3.43220133,212.8,212.78,4.2273]
[1758743063535,7.63,212.81,212.78,4.2273]
[1758743063723,3.43202656,212.8,212.78,4.2273]
[1758743063929,7.63,212.81,212.78,4.2273]
[1758743064130,3.43202656,212.8,212.78,4.2273]
[1758743064429,7.63,212.81,212.78,4.2273]
[1758743064629,3.43188353,212.8,212.78,4.2273]
[1758743064830,7.63,212.81,212.78,4.2273]
[1758743065030,3.43188353,212.8,212.78,4.2273]
[1758743065230,7.63,212.81,212.78,4.2273]
[1758743065430,3.43177054,212.8,212.79,7.69]
[1758743065633,0.97163758,212.86,212.77,7.69]
[1758743065838,3.43222148,212.85,212.77,7.69]
[1758743066038,3.43222148,212.84,212.77,7.69]
[1758743066237,3.43222148,212.83,212.81,4.2267]
[1758743066543,7.51,212.89,212.79,7.69]
[1758743066739,3.43224221,212.88,212.79,7.69]
[1758743066940,3.43224221,212.87,212.79,7.69]
[1758743067138,3.43224221,212.86,212.84,11.9161]
[1758743067337,3.43224221,212.85,212.84,11.9161]
[1758743067535,7.51,212.88,212.84,11.9161]
[1758743067736,3.43224221,212.87,212.84,11.9161]
[1758743068742,3.43224221,212.86,212.84,11.9161]
[1758743070843,3.43224221,212.86,212.85,7.69]
[1758743071036,3.39931154,212.9,212.86,11.9158]
[1758743071236,10.94153181,212.89,212.86,11.9158]
[1758743071438,3.43153181,212.88,212.86,11.9158]
[1758743072445,3.43153181,212.88,212.87,7.69]
[1758743072646,4.38789101,212.93,212.87,7.69]
[1758743072837,3.4321532,212.92,212.87,7.69]
[1758743073040,3.4321532,212.91,212.88,7.69]
[1758743073236,3.4321532,212.9,212.88,7.69]
[1758743073543,3.4321532,212.89,212.88,11.9155]
[1758743074347,4.38789101,212.93,212.88,11.9155]
[1758743074539,10.94198678,212.92,212.88,11.9155]
[1758743074741,3.43198678,212.91,212.89,4.2251]
[1758743074950,3.43198678,212.9,212.89,11.9151]
[1758743076155,3.43198678,212.9,212.87,4.2256]
[1758743076452,3.43231327,212.89,212.87,11.9156]
[1758743076657,7.51,212.92,212.87,11.9156]
[1758743076844,3.43231221,212.91,212.87,11.9156]
[1758743077048,10.94231221,212.9,212.87,11.9156]
[1758743077250,3.43231221,212.89,212.87,11.9156]
[1758743078361,3.43231221,212.89,212.88,7.69]
[1758743078749,3.43246701,212.89,212.88,7.69]
[1758743079459,10.94246701,212.89,212.87,4.2256]
[1758743079659,7.51,212.89,212.87,4.2256]
[1758743080162,3.39931154,212.93,212.87,11.9156]
[1758743080356,7.51,212.91,212.87,11.9156]
[1758743080559,3.43190625,212.9,212.87,11.9156]
[1758743082555,3.43190625,212.9,212.83,114.86]
[1758743082556,7.51,212.89,212.84,4.2261]
[1758743082762,3.43090024,212.88,212.85,7.69]
[1758743082963,7.51,212.9,212.85,7.69]
[1758743082964,3.43090024,212.87,212.85,7.69]
[1758743083159,7.51,212.91,212.85,7.69]
[1758743083359,6.83004882,212.9,212.84,4.2261]
[1758743083665,7.51,212.88,212.82,11.9166]
[1758743083868,3.39931154,212.9,212.83,7.69]
[1758743083869,10.94073728,212.87,212.83,7.69]
[1758743084166,3.43073728,212.86,212.83,7.69]
[1758743085353,3.43073728,212.86,212.82,4.2266]
[1758743085759,3.43073728,212.86,212.83,7.69]
[1758743085961,10.94073728,212.86,212.8,4.227]
[1758743086269,7.51,212.84,212.8,11.917]
[1758743086463,3.43073728,212.83,212.8,11.917]
[1758743086661,3.39931154,212.86,212.8,11.917]
[1758743086860,3.43381317,212.85,212.8,11.917]
[1758743087168,10.94381317,212.84,212.78,4.2274]
[1758743087359,10.94381317,212.83,212.79,7.69]
[1758743087555,3.43381317,212.82,212.79,7.69]
[1758743087763,3.43381317,212.81,212.79,7.69]
[1758743087962,7.51,212.83,212.79,7.69]
[1758743088158,3.43394286,212.82,212.79,7.69]
[1758743088466,3.43394286,212.81,212.78,4.2274]
[1758743088667,7.51,212.83,212.79,7.69]
[1758743088867,3.4347002,212.82,212.79,7.69]
[1758743089168,3.4347002,212.81,212.8,7.69]
[1758743090465,3.4347002,212.81,212.79,4.2271]
[1758743090665,7.51,212.85,212.79,4.2271]
[1758743090863,10.94502101,212.84,212.8,7.69]
[1758743091069,7.51,212.82,212.79,4.2271]
[1758743091268,3.43502101,212.81,212.79,4.2271]
[1758743091468,7.51,212.82,212.79,11.9171]
[1758743091764,3.43504068,212.81,212.79,11.9171]
[1758743091962,10.90931154,212.86,212.79,11.9171]
[1758743092169,3.43503328,212.85,212.79,11.9171]
[1758743092368,10.90931154,212.86,212.8,7.69]
[1758743092369,10.94503328,212.84,212.8,7.69]
[1758743092563,3.43503328,212.83,212.8,11.9169]
[1758743092764,3.43503328,212.82,212.8,11.9169]
[1758743092958,7.51,212.85,212.8,11.9169]
[1758743093161,3.43539493,212.84,212.8,11.9169]
[1758743093357,3.43539493,212.83,212.8,11.9169]
[1758743093560,3.43539493,212.82,212.8,11.9169]
[1758743093764,15.24531154,212.86,212.8,11.9169]
[1758743093964,7.62,212.84,212.8,11.9169]
[1758743094170,3.43557109,212.83,212.8,11.9169]
[1758743094371,3.43557109,212.82,212.8,11.9169]
[1758743094674,7.62,212.84,212.8,11.6169]
[1758743094971,3.4357492,212.83,212.8,11.6169]
[1758743095174,3.4357492,212.82,212.8,11.6169]
[1758743095365,7.62,212.84,212.8,11.6169]
[1758743095564,3.43593409,212.83,212.8,11.6169]
[1758743095864,3.43593409,212.82,212.8,11.6169]
[1758743096162,7.62,212.84,212.8,11.6169]
[1758743096362,3.43593409,212.83,212.8,7.39]
[1758743096559,3.43593409,212.82,212.8,7.39]
[1758743096767,3.43593409,212.81,212.8,7.39]
[1758743097269,3.43593409,212.81,212.76,4.2279]
[1758743097470,11.05593409,212.8,212.76,11.6179]
[1758743097662,7.62,212.8,212.76,11.6179]
[1758743097861,3.43564425,212.79,212.76,4.2279]
[1758743098062,7.62,212.8,212.77,7.39]
[1758743098263,7.62,212.78,212.71,7.39]
[1758743098468,3.43521245,212.77,212.71,7.39]
[1758743098769,3.43525255,212.76,212.71,7.39]
[1758743098972,7.62,212.78,212.71,7.39]
[1758743099169,3.4352118,212.77,212.71,7.39]
[1758743099370,3.4352118,212.76,212.7,4.39505]
[1758743099566,7.62,212.78,212.71,7.39]
[1758743099770,3.43387005,212.77,212.71,7.39]
[1758743099972,3.43387005,212.76,212.71,7.3]
[1758743100174,3.43387005,212.75,212.7,4.39505]
[1758743100367,3.43387005,212.74,212.71,7.3]
[1758743100675,3.39931154,212.77,212.71,7.3]
[1758743100977,3.43363278,212.76,212.7,0.16605]
[1758743101270,3.43363278,212.75,212.7,0.16605]
[1758743101473,3.43363278,212.74,212.7,0.16605]
[1758743101668,124.0,212.77,212.71,7.3]
[1758743101871,3.43167904,212.76,212.7,0.16605]
[1758743102174,3.43167904,212.75,212.71,7.3]
[1758743102479,3.43167904,212.74,212.71,7.3]
[1758743102674,11.7477,212.77,212.7,0.16605]
[1758743102873,3.42978119,212.76,212.7,0.16605]
[1758743103068,7.52,212.74,212.7,0.16605]
[1758743103372,10.94816159,212.73,212.7,0.16605]
[1758743103579,3.39931154,212.76,212.7,0.16605]
[1758743103782,7.52,212.74,212.7,0.16605]
[1758743103970,3.42817301,212.73,212.7,0.16605]
[1758743104170,7.52,212.71,212.7,0.16605]
[1758743105676,3.39931154,212.76,212.7,0.16605]
[1758743105877,7.52,212.74,212.7,0.16605]
[1758743106078,7.52,212.77,212.7,0.16605]
[1758743106279,7.52,212.75,212.7,0.16605]
[1758743106476,7.52,212.73,212.7,0.16605]
[1758743106676,3.39931154,212.76,212.7,0.16605]
[1758743106876,7.52,212.74,212.7,0.16605]
[1758743107174,3.39931154,212.76,212.7,0.16605]
[1758743107382,7.52,212.74,212.7,0.16605]
[1758743107577,11.7479,212.77,212.71,7.3]
[1758743107772,3.42241889,212.76,212.71,7.3]
[1758743107977,10.94241889,212.75,212.71,7.3]
[1758743108178,7.52,212.75,212.72,11.5286]
[1758743108479,7.52,212.75,212.72,7.3]
[1758743108877,7.52,212.75,212.72,11.5287]
[1758743109679,10.91931154,212.78,212.72,11.5287]
[1758743109882,3.42091104,212.77,212.72,11.5287]
[1758743110081,10.94091104,212.76,212.72,7.3]
[1758743110277,7.52,212.76,212.72,7.3]
[1758743110787,7.52,212.77,212.72,7.3]
[1758743110987,3.39931154,212.78,212.72,7.3]
[1758743111184,7.52,212.76,212.72,7.3]
[1758743111488,7.52,212.77,212.72,7.3]
[1758743111786,7.62681154,212.78,212.72,7.3]
[1758743111983,7.52,212.76,212.72,11.5285]
[1758743112883,7.52,212.76,212.73,4.2283]
[1758743113089,7.52,212.76,212.73,11.5283]
[1758743113978,7.52,212.77,212.71,4.2288]
[1758743114381,7.52,212.75,212.71,4.2288]
[1758743114582,7.52,212.75,212.71,11.5288]
[1758743114985,4.2278,212.77,212.71,7.3]
[1758743115283,10.94834261,212.76,212.7,0.16605]
[1758743115484,3.39931154,212.71,212.7,0.16605]
[1758743115687,10.91931154,212.71,212.7,0.16605]
[1758743116587,14.82598593,212.71,212.63,7.3]
[1758743116788,10.91931154,212.71,212.63,7.3]
[1758743117582,4.2291,212.7,212.63,7.3]
[1758743117889,7.52,212.69,212.63,7.3]
[1758743118586,7.52,212.66,212.62,4.2307]
[1758743118792,7.52,212.63,212.55,7.3]
[1758743119480,7.52,212.63,212.54,7.3]
[1758743120091,7.52,212.6,212.54,7.3]
[1758743121195,7.52,212.6,212.54,11.5321]
[1758743121686,7.52,212.64,212.58,4.2314]
[1758743121994,7.52,212.64,212.58,11.5314]
[1758743123386,2.1799124,212.63,212.58,11.5314]
[1758743123691,7.52,212.62,212.58,4.2314]
[1758743123888,9.5099124,212.63,212.55,4.2319]
[1758743124286,2.1799124,212.61,212.55,4.2319]
[1758743124889,7.33,212.6,212.55,4.2319]
[1758743125089,9.5099124,212.61,212.55,4.2319]
[1758743126595,9.5099124,212.61,212.57,7.99]
[1758743126787,2.1799124,212.61,212.54,7.99]
[1758743126984,9.5099124,212.64,212.54,7.99]
[1758743127287,3.41787385,212.63,212.54,7.99]
[1758743127486,9.5099124,212.64,212.54,7.99]
[1758743127684,3.41833165,212.63,212.54,7.99]
[1758743127887,2.1799124,212.64,212.54,7.99]
[1758743128188,2.1799124,212.64,212.53,68.0185124]
[1758743128189,10.748335,212.63,212.58,12.2214]
[1758743128397,7.33,212.63,212.58,4.2314]
[1758743128585,7.33,212.63,212.59,7.99]
[1758743129294,2.1799124,212.64,212.61,7.99]
[1758743129492,3.42083443,212.63,212.6,4.2309]
[1758743129695,2.1799124,212.66,212.6,12.2209]
[1758743129895,10.75085932,212.65,212.6,12.2209]
[1758743130099,3.42085932,212.64,212.6,12.2209]
[1758743131996,3.42085932,212.64,212.61,7.99]
[1758743132296,3.42085932,212.64,212.58,65.823]
[1758743132499,9.5099124,212.69,212.6,7.99]
[1758743132797,3.42235066,212.68,212.6,7.99]
[1758743132999,3.42235066,212.67,212.6,7.99]
[1758743133201,3.42235066,212.66,212.63,4.2305]
[1758743133396,9.5099124,212.69,212.63,12.2205]
[1758743133702,10.75301283,212.68,212.64,7.99]
[1758743133997,3.42301283,212.67,212.64,7.99]
[1758743134798,3.42301283,212.67,212.59,2.1799124]
[1758743135096,3.42301283,212.67,212.6,7.99]
[1758743136399,3.42301283,212.67,212.64,7.99]
[1758743137006,3.42301283,212.67,212.62,7.99]
[1758743137201,137.55988893,212.71,212.64,7.99]
[1758743137398,3.42530264,212.7,212.67,4.2297]
[1758743137697,3.42530264,212.69,212.67,12.2197]
[1758743137899,3.42530264,212.68,212.67,12.2197]
[1758743138308,3.42530264,212.7,212.67,12.2197]
[1758743138507,3.42530264,212.69,212.67,12.2197]
[1758743138804,3.42530264,212.68,212.67,12.2197]
[1758743138999,3.42530264,212.7,212.67,12.2197]
[1758743140803,3.42530264,212.7,212.68,4.2293]
[1758743141006,3.42530264,212.7,212.69,7.99]
[1758743141209,3.42530264,212.7,212.65,65.801]
[1758743141508,2.1799124,212.74,212.66,7.99]
[1758743141702,3.43306863,212.73,212.66,7.99]
[1758743141910,3.43306863,212.72,212.66,7.99]
[1758743142102,3.43306863,212.71,212.66,7.99]
[1758743142297,3.43306863,212.7,212.66,7.99]
[1758743142496,2.1799124,212.74,212.66,7.99]